Cogmind - Beta 11.1 @@@ ROGUE MODE // 2022.05.17 @ 12:08:09 Player: Flowthing Result: Destroyed by G-50 Soldier with Heavy Laser Performance ------------- Evolutions (3) 1500 Regions Visited (7) 1400 Robots Destroyed (117) 585 Value Destroyed (4112) 4112 Prototype IDs (1) 20 Alien Tech Used (0) 0 Bonus (496) 496 TOTAL SCORE: 8113 Bonus ------- High Alert Combat Kills 373 Follower Combat Kills 123 Cogmind --------- Core Integrity 0/700 Matter 290/300 Energy 233/275 System Corruption 5% Temperature Cool (9) Movement Rolling (160) Ox4 Location -7/Lower Caves Parts ------- > --- POWER (1) -------- Deuterium Engine > --- PROPULSION (2) --- Light Treads Compact Wheel > --- UTILITY (6) ------ High-capacity Storage Unit Advanced Targeting Computer Target Analyzer Hardened Light Armor Plating Hardened Medium Armor Plating Graphene Brace > --- WEAPON (4) ------- Chainsword Tearclaws Makeshift Spear > --- INVENTORY (20) --- Improved Deuterium Engine Compact Matter Pod (122) Improved Targeting Computer Target Analyzer Kinecellerator Weapon Cycler Graphene Brace High-powered Tractor Beam Long-range Tractor Beam Improved Recalibrator Lightning Gun EMP Trap EMP Trap EMP Trap EMP Trap Peak State ------------ > --- POWER ------------ Improved Deuterium Engine > --- PROPULSION ------- Armored Treads Advanced Treads > --- UTILITY ---------- High-capacity Storage Unit Advanced Targeting Computer Target Analyzer Graphene Brace Graphene Brace Long-range Tractor Beam > --- WEAPON ----------- Flak Gun Rocket Launcher Missile Launcher Chainsword > --- INVENTORY -------- Light Nuclear Core Light Treads Armored Treads Armored Treads Compact Wheel Compact Matter Pod High-powered Tractor Beam Improved Recalibrator EMP Trap EMP Trap EMP Trap EMP Trap [Rating: 49] Favorites ----------- Power Reinforced Deuterium Engine Engine Reinforced Deuterium Engine Power Core Light Nuclear Core Propulsion Armored Treads Treads Armored Treads Leg Aluminum Leg Wheel Compact Wheel Utility High-capacity Storage Unit Device High-powered Tractor Beam Storage High-capacity Storage Unit Processor Advanced Targeting Computer Hackware Hacking Suite Protection Light Armor Plating Weapon Assault Rifle Energy Gun Lightning Gun Ballistic Gun Assault Rifle Ballistic Cannon Advanced Assault Cannon Launcher Missile Launcher Slashing Weapon Chainsword Piercing Weapon Makeshift Spear Build | -11 -10 -10 -9 -8 -7 -7 -7 ------- Run | Scr Mat Min Mat Mat Fac Low Low Slots Evolved 6 | . . . 2 2 2 . . Power . | . . . . . . . . Propulsion . | . . . . . . . . Utility 4 | . . . 1 1 2 . . Weapon 2 | . . . 1 1 . . . Parts Attached 130 | . 8 5 15 26 61 14 1 Power 11 | . 2 . . 6 1 2 . Engine 7 | . 2 . . 3 1 1 . Core 4 | . . . . 3 . 1 . Reactor . | . . . . . . . . Propulsion 18 | . 2 1 2 6 3 4 . Treads 14 | . . . 2 6 3 3 . Leg 3 | . 2 1 . . . . . Wheel 1 | . . . . . . 1 . Hover . | . . . . . . . . Flight . | . . . . . . . . Utility 42 | . 2 1 2 8 23 6 . Device 18 | . 1 . . 1 12 4 . Storage 1 | . 1 . . . . . . Processor 5 | . . . 1 2 2 . . Hackware 1 | . . . . . 1 . . Protection 17 | . . 1 1 5 8 2 . Artifact . | . . . . . . . . Weapon 59 | . 2 3 11 6 34 2 1 Energy Gun 1 | . . . . . . 1 . Energy Cannon . | . . . . . . . . Ballistic Gun 33 | . 2 2 7 4 18 . . Ballistic Cannon 4 | . . . . . 4 . . Launcher 16 | . . 1 4 2 9 . . Special Weapon . | . . . . . . . . Impact Weapon . | . . . . . . . . Slashing Weapon 3 | . . . . . 2 . 1 Piercing Weapon 2 | . . . . . 1 1 . Special Melee Weapon . | . . . . . . . . Unidentified Prototypes . | . . . . . . . . Parts Lost 39 | . 2 . . 8 20 9 . Power 5 | . 1 . . 2 . 2 . Propulsion 7 | . . . . 1 2 4 . Utility 11 | . . . . 4 7 . . Weapon 16 | . 1 . . 1 11 3 . Highest Loss Streak 9 | . 2 . . 6 6 9 . To Critical Strikes . | . . . . . . . . Average Slot Usage (%) 96 | . 93 100 100 97 99 88 92 Engine 8 | . 14 14 11 7 6 6 7 Treads 11 | . . . 19 17 14 9 7 Leg 5 | . 28 28 2 . . . . Wheel 1 | . . . . . . 4 7 Device 8 | . 8 1 . 2 12 12 7 Storage 8 | . 14 14 11 9 7 7 7 Processor 11 | . . . 11 8 16 15 15 Protection 9 | . . 12 11 14 7 9 15 Energy Gun 1 | . 4 . . . . 4 . Ballistic Gun 20 | . 23 27 32 35 21 1 . Ballistic Cannon 2 | . . . . . 7 . . Slashing Weapon 1 | . . . . . . 7 14 Naked Turns . | . . . . . . . . Heaviest Build 85 | 11 50 53 56 70 85 72 78 Greatest Support 42 | 20 20 20 40 40 42 42 16 Greatest Overweight (x) 4 | . 2 2 2 3 2 4 4 Average Overweight (x) 1 | . . 2 1 1 1 3 4 Largest Inventory Capacity 20 | . 20 20 20 20 20 20 20 Average Capacity 19 | . 11 20 20 20 20 20 20 Most Carried 20 | . 8 20 19 20 20 14 15 Average Carried 16 | . 7 17 17 18 18 12 14 Final Capacity 20 | 8 20 20 20 20 20 20 20 Final Carried 20 | 6 8 20 19 18 11 14 15 Class Distribution -------------------- 56% | Scavenger-Gunner 17% | Scavenger-Mutant 11% | Derelict-Mutant 6% | Scavenger-Tank 5% | Mutant Dominant Class ---------------- Mutant | -10/Materials Scavenger-Mutant | -10/Mines Scavenger-Gunner | -9/Materials Scavenger-Tank | -8/Materials Scavenger-Gunner | -7/Factory Derelict-Mutant | -7/Lower Caves Scavenger-Mutant | -7/Lower Caves Resources | -11 -10 -10 -9 -8 -7 -7 -7 ----------- Run | Scr Mat Min Mat Mat Fac Low Low Matter Collected 4138 | 174 185 137 403 707 1987 520 25 Remotely 2278 | . . . . . 1860 418 . Salvage Created 3872 | . 327 67 538 735 2081 68 56 Parts 273 | . 15 2 48 62 133 8 5 Haulers Intercepted 5 | . . . 1 1 3 . . Recyclers Shooed 4 | . 4 . . . . . . Parts Field Recycled . | . . . . . . . . Retrieved Matter . | . . . . . . . . Parts Self-Destructed 17 | . . . . . . 17 . Prevented . | . . . . . . . . Kills | -11 -10 -10 -9 -8 -7 -7 -7 ------- Run | Scr Mat Min Mat Mat Fac Low Low Combat Hostiles Destroyed 89 | . 7 2 15 17 43 3 2 Melee 4 | . . . . . 1 1 2 Guns 46 | . 7 1 7 13 18 . . Cannons 9 | . . . . . 9 . . AOE 30 | . . 1 8 4 15 2 . Classes Destroyed 18 | . 3 . 5 1 8 . 1 Worker 6 | . . . 2 1 3 . . Builder 5 | . . . . . 5 . . Tunneler 1 | . . . 1 . . . . Hauler 5 | . . . 1 1 3 . . Recycler 1 | . 1 . . . . . . Mechanic 2 | . . . . . 2 . . Operator 1 | . . . . . 1 . . Watcher 7 | . . . 1 1 5 . . Swarmer 15 | . 2 . 4 3 4 2 . Grunt 46 | . 5 2 8 9 21 . 1 Brawler 1 | . . . . . 1 . . Duelist 2 | . . . . . 2 . . Sentry 11 | . . . 3 4 4 . . Specialist 2 | . . . . . 2 . . Hunter 2 | . . . . . 2 . . Programmer 7 | . . . . . 6 1 . Heavy 2 | . . . . 1 1 . . Thief 1 | . . . . . . . 1 Best Kill Streak 10 | . 4 2 6 9 10 2 1 Combat Bots Only 8 | . 3 2 4 8 8 2 1 Max Kills in Single Turn 4 | . 1 1 4 2 4 2 1 Gunslinging . | . . . . . . . . Exploded 3 | . . 1 3 2 2 2 . Melee 1 | . . . . . 1 1 1 Uniques/NPCs Destroyed . | . . . . . . . . Combat | -11 -10 -10 -9 -8 -7 -7 -7 -------- Run | Scr Mat Min Mat Mat Fac Low Low Damage Taken 6866 | . 316 147 189 1114 3471 1347 282 Core 847 | . 29 24 22 70 309 356 37 Absorbed by Shields . | . . . . . . . . Core Remaining (%) 89 | 100 . 78 94 87 . . . Volleys Fired 201 | . 29 8 17 39 102 5 1 Largest 4 | . 2 2 3 4 4 3 1 Hottest 160 | . 60 50 66 102 160 97 55 Shots Fired 617 | . 58 15 43 147 345 8 1 Gun 516 | . 58 13 39 140 259 6 1 Cannon 72 | . . . . . 72 . . Launcher 29 | . . 2 4 7 14 2 . Special . | . . . . . . . . Kinetic 568 | . 41 13 39 140 331 4 . Thermal . | . . . . . . . . Explosive 29 | . . 2 4 7 14 2 . Electromagnetic 20 | . 17 . . . . 2 1 Robot Hit Streak 20 | . 7 12 11 20 18 4 . Robot Miss Streak 6 | . 5 2 2 5 6 6 1 Penetration Max . | . . . . . . . . Secondary Targets 5 | . 3 . . 1 1 . . Max Gunslinging Chain 1 | . 1 . . 1 1 . . Shots Hit Robots 401 | . 35 10 27 86 231 7 5 Core Hits 255 | . 15 6 32 44 148 8 2 Critical Kills . | . . . . . . . . Critical Parts Destroyed 6 | . . . . 1 5 . . Critical Strikes 15 | . . . . 1 13 1 . Destroy 6 | . . . . 1 5 . . Blast 8 | . . . . . 8 . . Corrupt 1 | . . . . . . 1 . Melee Attacks 20 | . . . . . 7 7 6 Impact . | . . . . . . . . Slashing 10 | . . . . . 1 6 3 Piercing 10 | . . . . . 6 1 3 Sneak Attacks . | . . . . . . . . Combat Hostiles . | . . . . . . . . Follow-up Attacks . | . . . . . . . . Damage Inflicted 9746 | . 414 248 838 1884 5932 312 118 Guns 4937 | . 412 104 353 1116 2875 77 . Cannons 1152 | . . . . . 1152 . . Explosions 3469 | . . 143 485 768 1868 205 . Melee 185 | . . . . . 37 30 118 Ramming 3 | . 2 1 . . . . . Kinetic 5947 | . 287 104 353 1116 4027 60 . Thermal . | . . . . . . . . Explosive 3469 | . . 143 485 768 1868 205 . Electromagnetic 142 | . 125 . . . . 17 . Impact . | . . . . . . . . Slashing 68 | . . . . . 37 . 31 Piercing 117 | . . . . . . 30 87 Highest Corruption 8 | . . . . . 5 8 5 Average Corruption 3 | . . . . . 2 5 5 Corruption Purged 5 | . . . . . 2 3 . Corruption Blocked 5 | . . . . . 5 . . Effects 84 | . . . . . 34 44 6 Message Errors 23 | . . . . . 6 14 3 Matter Fused 16 | . . . . . 7 8 1 Heat Flow Errors 7 | . . . . . 3 4 . Energy Discharges 12 | . . . . . 6 5 1 Data Loss (minor) 15 | . . . . . 4 10 1 Data Loss (major) 3 | . . . . . 1 2 . Misfires 4 | . . . . . 3 1 . Alerts 2 | . . . . . 2 . . Weapon Failures 2 | . . . . . 2 . . Overload Shots . | . . . . . . . . Overflow Damage 38 | . . . . 15 23 . . Projectiles 17 | . . . . . 17 . . Explosions 21 | . . . . 15 6 . . Melee . | . . . . . . . . Knockbacks 10 | . . . . . 10 . . Impact . | . . . . . . . . Kinetic 10 | . . . . . 10 . . Secondary . | . . . . . . . . Self-Inflicted Damage 146 | . . . . 30 116 . . Shots 4 | . . . . 1 3 . . Rammed . | . . . . . . . . Targets Rammed 3 | . 1 2 . . . . . Kicked 3 | . 1 2 . . . . . Crushed . | . . . . . . . . Highest Temperature 517 | . 48 . 36 330 517 234 18 Average Temperature 92 | . 18 . 9 92 106 77 9 Received Heat Transfer 1791 | . 159 75 72 387 837 135 126 Effects 9 | . . . . . 8 1 . Shutdowns 2 | . . . . . 2 . . Energy Bleed 1 | . . . . . . 1 . Interference 3 | . . . . . 3 . . Matter Decay 2 | . . . . . 2 . . Short Circuit 1 | . . . . . 1 . . Siege Activations . | . . . . . . . . Robots Corrupted . | . . . . . . . . Combat Hostiles . | . . . . . . . . Parts Fried . | . . . . . . . . Impact Corruptions . | . . . . . . . . Robots Melted . | . . . . . . . . Combat Hostiles . | . . . . . . . . Parts Melted . | . . . . . . . . Heat Transferred . | . . . . . . . . Parts Sabotaged . | . . . . . . . . Parts Stolen . | . . . . . . . . Parts Stripped . | . . . . . . . . Power Chain Reactions . | . . . . . . . . Missiles Intercepted . | . . . . . . . . Alert | -11 -10 -10 -9 -8 -7 -7 -7 ------- Run | Scr Mat Min Mat Mat Fac Low Low Peak Influence 833 | . 275 150 576 385 833 . . Initial 148 | . . 28 . 148 43 . . Average 198 | . 135 45 333 190 226 . . Maximum Alert Level 3 | . 1 . 2 1 3 . . Low Security (%) 60 | . 60 100 26 63 55 . . Level 1 19 | . 39 . 23 36 18 . . Level 2 18 | . . . 49 . 24 . . Level 3 . | . . . . . 1 . . Level 4 . | . . . . . . . . Level 5 . | . . . . . . . . High Security . | . . . . . . . . Max Security . | . . . . . . . . Squads Dispatched 21 | . 2 . 3 1 15 . . Investigation 3 | . . . . . 3 . . Extermination 6 | . . . . . 6 . . Reinforcement 11 | . 2 . 3 1 5 . . Assault 1 | . . . . . 1 . . Garrison . | . . . . . . . . Intercept . | . . . . . . . . Searches Triggered . | . . . . . . . . Construction Impeded 2 | . . . 1 . 1 . . Haulers Reinforced . | . . . . . . . . Active Scanning Responses . | . . . . . . . . Cargo Convoy Interrupts 1 | . . . . . 1 . . Stealth | -11 -10 -10 -9 -8 -7 -7 -7 --------- Run | Scr Mat Min Mat Mat Fac Low Low Distress Signals 7 | . 3 . 1 2 1 . . Communications Jammed . | . . . . . . . . Distress Signals . | . . . . . . . . Times Spotted 138 | . 16 4 24 24 60 5 5 Peak Tracking Total 8 | . 7 2 6 4 8 4 4 Tactical Retreats 3 | . 3 . . . . . . Traps | -11 -10 -10 -9 -8 -7 -7 -7 ------- Run | Scr Mat Min Mat Mat Fac Low Low Traps Triggered 1 | . . . . . 1 . . Indirectly . | . . . . . . . . Trap Hack Attempts . | . . . . . . . . Triggered . | . . . . . . . . Disarmed . | . . . . . . . . Reprogrammed . | . . . . . . . . Reused . | . . . . . . . . Traps Extracted . | . . . . . . . . Installed . | . . . . . . . . Triggered 1 | . . . . . 1 . . Most Traps Carried 4 | . . 4 4 4 4 4 4 Machines | -11 -10 -10 -9 -8 -7 -7 -7 ---------- Run | Scr Mat Min Mat Mat Fac Low Low Machines Disabled 8 | . . . 3 . 5 . . Max in Single Turn 2 | . . . 1 . 2 . . Machines Sabotaged . | . . . . . . . . Garrisons Compromised 1 | . . . . . 1 . . Overloaded Fab Kills . | . . . . . . . . Hacking | -11 -10 -10 -9 -8 -7 -7 -7 --------- Run | Scr Mat Min Mat Mat Fac Low Low Machines Accessed 20 | . 1 . 3 4 10 2 . Terminals 13 | . 1 . 2 3 7 . . Fabricators . | . . . . . . . . Repair Stations 2 | . . . 1 . 1 . . Recycling Units . | . . . . . . . . Scanalyzers 2 | . . . . 1 1 . . Garrison Access 1 | . . . . . 1 . . Total Hacks 52 | . 1 . 7 8 21 15 . Successful 28 | . 1 . 1 5 6 15 . Failed 24 | . . . 6 3 15 . . Catastrophic 6 | . . . 2 1 3 . . Database Lockouts . | . . . . . . . . Manual 20 | . 1 . 3 8 8 . . Terminals 23 | . 1 . 3 7 12 . . Fabricators . | . . . . . . . . Repair Stations 7 | . . . 4 . 3 . . Recycling Units . | . . . . . . . . Scanalyzers 5 | . . . . 1 4 . . Garrison Access 2 | . . . . . 2 . . Terminal Hacks 17 | . . . . 1 1 15 . Record 14 | . . . . . . 14 . Open Door 1 | . . . . . . 1 . Open DSF 1 | . . . . . 1 . . Unreport Threat 1 | . . . . 1 . . . Fabricator Hacks . | . . . . . . . . Repair Station Hacks 2 | . . . 1 . 1 . . Scan Component 2 | . . . 1 . 1 . . Recycling Unit Hacks . | . . . . . . . . Scanalyzer 3 | . . . . 1 2 . . Insert Component 2 | . . . . 1 1 . . Analyze 1 | . . . . . 1 . . Garrison Access Hacks . | . . . . . . . . Unauthorized Hacks 6 | . 1 . . 3 2 . . Terminals 6 | . 1 . . 3 2 . . Botnet 6 | . 1 . . 3 2 . . Fabricators . | . . . . . . . . Repair Stations . | . . . . . . . . Recycling Units . | . . . . . . . . Scanalyzers . | . . . . . . . . Garrison Access . | . . . . . . . . Data Cores Recovered . | . . . . . . . . Used . | . . . . . . . . Hacking Detections 14 | . . . 3 2 9 . . Full Trace Events 2 | . . . . . 2 . . Feedback Events 1 | . . . . . 1 . . Corruption 1 | . . . . . 1 . . Feedback Blocked . | . . . . . . . . Robot Schematics Acquired . | . . . . . . . . Robots Built . | . . . . . . . . Authchips . | . . . . . . . . Time . | . . . . . . . . Total Robot Build Rating . | . . . . . . . . Part Schematics Acquired 1 | . . . . . 1 . . Parts Built . | . . . . . . . . Authchips . | . . . . . . . . Time . | . . . . . . . . Total Part Build Rating . | . . . . . . . . Parts Repaired . | . . . . . . . . Time . | . . . . . . . . Parts Recycled . | . . . . . . . . Recycled Matter . | . . . . . . . . Retrieved Matter . | . . . . . . . . Retrieved Components . | . . . . . . . . Parts Scanalyzed 1 | . . . . . 1 . . Part Schematics Acquired 1 | . . . . . 1 . . Parts Damaged . | . . . . . . . . Bothacking | -11 -10 -10 -9 -8 -7 -7 -7 ------------ Run | Scr Mat Min Mat Mat Fac Low Low Used RIF Installer . | . . . . . . . . Robots Hacked . | . . . . . . . . Non-combat . | . . . . . . . . Combat . | . . . . . . . . Robot Hacks Applied . | . . . . . . . . Relay Couplers Released . | . . . . . . . . Fabnet Peak Effective % . | . . . . . . . . Robots Rewired . | . . . . . . . . Allies Hacked . | . . . . . . . . Hacks Repelled . | . . . . . . . . Allies | -11 -10 -10 -9 -8 -7 -7 -7 -------- Run | Scr Mat Min Mat Mat Fac Low Low Total Allies 4 | . . 4 . . . . . Largest Group 3 | . . 3 3 . . . . Highest-Rated Group 40 | . . 40 40 . . . . Highest-Rated Ally 31 | . . 31 16 . . . . Total Orders . | . . . . . . . . Ally Attacks 41 | . . . 41 . . . . Total Damage 463 | . . . 463 . . . . Kills 8 | . . . 8 . . . . Allies Corrupted . | . . . . . . . . Allies Melted . | . . . . . . . . Intel | -11 -10 -10 -9 -8 -7 -7 -7 ------- Run | Scr Mat Min Mat Mat Fac Low Low Robot Analysis Total . | . . . . . . . . Derelict Logs Recovered 3 | . . 2 . . . 1 . Drone Launches . | . . . . . . . . Drone Recoveries . | . . . . . . . . Exploration | -11 -10 -10 -9 -8 -7 -7 -7 ------------- Run | Scr Mat Min Mat Mat Fac Low Low Turns Passed 9620 | . 493 1259 899 980 3969 1753 267 Spaces Moved 3821 | 1 261 464 339 325 1320 960 151 Core . | . . . . . . . . Treads 2161 | . . . 301 325 1320 215 . Legs 764 | 1 261 464 38 . . . . Wheels 896 | . . . . . . 745 151 Hover . | . . . . . . . . Flight . | . . . . . . . . Fastest Speed 120 | 120 120 260 240 240 237 130 160 Average Speed 224 | 120 147 260 242 243 261 176 160 Slowest Speed 410 | 120 260 260 260 410 330 305 160 Overloaded Moves . | . . . . . . . . Propulsion Burnouts . | . . . . . . . . Robots Hopped . | . . . . . . . . Cave-ins Triggered . | . . . . . . . . Exploration Rate (%) 45 | 2 53 74 34 35 42 88 32 Regions Visited 7 Branch Regions 3 Pre-discovered Areas 3 | . . . . . . 3 . Known Exits Taken 2 | . . 1 1 . . . . Unknown Exits Taken 5 | 1 1 . . 1 1 1 . Scrap Searched 4 | . . . . . . 4 . Spaces Dug 24 | . . . 7 12 3 2 . Terrain Destroyed 181 | . . 17 11 32 119 2 . Melee 5 | . . . . . 3 2 . Projectile 17 | . . . . . 17 . . AOE 159 | . . 17 11 32 99 . . Terrain Rammed . | . . . . . . . . Walls Destroyed . | . . . . . . . . Machines Disabled . | . . . . . . . . Actions | -11 -10 -10 -9 -8 -7 -7 -7 --------- Run | Scr Mat Min Mat Mat Fac Low Low Total 4380 | . 311 498 381 427 1591 1004 168 Wait 108 | . 6 10 . 10 64 9 9 Move 3814 | . 260 463 338 324 1319 959 151 Hop . | . . . . . . . . Pick Up 50 | . 3 9 5 10 16 7 . Fast Attach 25 | . 1 1 . 7 11 4 1 Attach 45 | . 2 . 2 8 25 8 . Detach 18 | . . 1 . 5 8 3 1 Swap 60 | . 5 4 13 11 25 2 . Drop 35 | . 4 . 6 13 12 . . Fire 201 | . 29 8 17 39 102 5 1 Melee 19 | . . . . . 7 7 5 Ram . | . . . . . . . . Kick 3 | . 1 2 . . . . . Crush . | . . . . . . . . Escape Stasis 2 | . . . . . 2 . . Rewire . | . . . . . . . . Trap . | . . . . . . . . Miscellaneous . | . . . . . . . . Route ------- -11/Scrapyard -10/Materials (discovered 2 exits: *Mat / [*Min]) -10/Mines (discovered 2 exits: *Mat x2) -9/Materials (discovered 2 exits: *Mat x2) -8/Materials -7/Factory (discovered 2 exits: *Fac / *Low) -7/Lower Caves -7/Lower Caves History --------- Turn | Location | Event 1 | -11/Scrapyard | Discovered new exit (range 0) 1 | -11/Scrapyard | Entered Materials 231 | -10/Materials | Discovered new exit (range 15) 305 | -10/Materials | Build established: Mutant 442 | -10/Materials | Discovered new exit (range 14) 494 | -10/Materials | Entered Mines 633 | -10/Mines | Joined a pair of Derelicts in attacking an 0b10 outpost 829 | -10/Mines | Build established: Scavenger-Mutant 848 | -10/Mines | Discovered new exit (range 3) 851 | -10/Mines | Received a Mining Laser from a helpful Derelict 913 | -10/Mines | Identified exit to Materials 1098 | -10/Mines | Found a hidden stash of uninstalled traps 1164 | -10/Mines | Assisted by bots powering up and referring to "LRC-V3" 1560 | -10/Mines | Learned 2 Materials zone layouts 1753 | -10/Mines | Entered Materials 1753 | -9/Materials | Accompanied by 3 allies 1753 | -9/Materials | Evolved 2 slots: Utility x1, Weapon x1 1754 | -9/Materials | Identified exit to Materials 2410 | -9/Materials | Discovered exit to Materials (range 16) 2549 | -9/Materials | Build established: Scavenger-Gunner 2652 | -9/Materials | Entered another Materials area 2652 | -8/Materials | Evolved 2 slots: Utility x1, Weapon x1 2918 | -8/Materials | Destroyed 8 combat bots 2975 | -8/Materials | Build established: Scavenger-Tank 3316 | -8/Materials | Lost 6 parts (1p1n3u1w) 3383 | -8/Materials | Discovered new exit (range 15) 3401 | -8/Materials | Found Prototype Device 3541 | -8/Materials | Identified Active Sensor Suite 3562 | -8/Materials | Build established: Scavenger-Gunner 3632 | -8/Materials | Entered Factory 3632 | -7/Factory | Evolved 2 slots: Utility x2 4668 | -7/Factory | Discovered new exit (range 10) 4823 | -7/Factory | Identified exit to Factory 4832 | -7/Factory | Lost 3 parts (3w) 5440 | -7/Factory | Cargo convoy interrupted 6832 | -7/Factory | First assault squad dispatched 7465 | -7/Factory | Discovered new exit (range 16) 7506 | -7/Factory | Lost 6 parts (2u4w) 7586 | -7/Factory | Lost 5 parts (1n2u2w) 7590 | -7/Factory | Destroyed 8 combat bots 7601 | -7/Factory | Entered Lower Caves 7818 | -7/Lower Caves | Encountered a Warlord checkpoint 8082 | -7/Lower Caves | Core integrity fell below 50% 8108 | -7/Lower Caves | Core integrity fell below 20% 8172 | -7/Lower Caves | Lost 9 parts (2p4n3w) 8174 | -7/Lower Caves | Learned location of Extension (-6) 8174 | -7/Lower Caves | Learned location of Armory (-4) 8174 | -7/Lower Caves | Learned location of 1 exit from Factory 8174 | -7/Lower Caves | Learned 8 Factory zone layouts 8174 | -7/Lower Caves | Learned Armory trap positions 8174 | -7/Lower Caves | Learned Factory emergency access door positions 8174 | -7/Lower Caves | Learned Research stockpile data 8174 | -7/Lower Caves | Learned Extension terminal intel 8174 | -7/Lower Caves | Learned Factory garrison access intel 8174 | -7/Lower Caves | Learned Armory garrison access intel 8566 | -7/Lower Caves | Build established: Derelict-Mutant 8865 | -7/Lower Caves | Learned Factory stockpile data 9317 | -7/Lower Caves | Discovered new exit (range 10) 9354 | -7/Lower Caves | Entered another Lower Caves area 9621 | -7/Lower Caves | Destroyed by G-50 Soldier with Heavy Laser Last Messages --------------- 09374_ M-14 Sweeper reprogrammed Dirty Bomb Trap. 09376_ M-14 Sweeper failed to extract Dirty Bomb Trap. 09378_ M-14 Sweeper extracted Dirty Bomb Trap. 09379_ M-14 Sweeper reprogrammed Fire Trap. 09381_ M-14 Sweeper failed to extract Fire Trap. 09382_ M-14 Sweeper extracted Fire Trap. 09383_ M-14 Sweeper reprogrammed Dirty Bomb Trap. 09384_ M-14 Sweeper failed to extract Dirty Bomb Trap. 09385_ System corrupted: Component data lost. 09385_ M-14 Sweeper extracted Dirty Bomb Trap. 09440_ 3ALQPVHTRG O>CT=XYT1XO35L#FT6SH3V%D>BVLO 09471_ Z3PVWJWI9P9>LPQ:ADP|IS8